fUST/lending_fUST_20251119
["ID","MTS","AMOUNT","RATE_DAILY","PERIOD"]
[394381139,1763512246775,-520.65947668,0.00015973,2]
[394381141,1763512246785,-500.0,0.00015973,2]
[394381142,1763512246794,-356.21988391,0.00015973,2]
[394381144,1763512246802,-500.0,0.00015973,2]
[394381147,1763512246813,-500.0,0.00015973,2]
[394381149,1763512246822,-500.0,0.00015973,2]
[394381151,1763512246831,-500.0,0.00015973,2]
[394381153,1763512246840,-501.81896579,0.00015973,2]
[394381155,1763512246850,-500.0,0.00015973,2]
[394381157,1763512246859,-500.0,0.00015973,2]
[394381159,1763512246869,-500.0,0.00015973,2]
[394381160,1763512246878,-500.0,0.00015973,2]
[394381163,1763512246888,-249.58662098,0.00015973,2]
[394381165,1763512246898,-500.0,0.00015973,2]
[394381167,1763512246907,-486.46322338,0.00015973,2]
[394381169,1763512246916,-504.4211239,0.00015973,2]
[394381170,1763512246925,-500.0,0.00015973,2]
[394381172,1763512246935,-96.9307081,0.00015973,2]
[394381175,1763512246947,-403.0692919,0.00015973,2]
[394381177,1763512246956,-500.0,0.00015973,2]
[394381179,1763512246966,-169.58130387,0.00015973,2]
[394381181,1763512246976,-500.8642677,0.00015973,2]
[394381183,1763512246985,-500.93519885,0.00015973,2]
[394381185,1763512246995,-500.0,0.00015973,2]
[394381187,1763512247004,-500.0,0.00015973,2]
[394381189,1763512247013,-500.0,0.00015973,2]
[394381191,1763512247022,-500.0,0.00015973,2]
[394381193,1763512247032,-10307.83912511,0.0001599,2]
[394381344,1763512293987,921.82,0.0001598,3]
[394381345,1763512305105,768.18,0.0001598,3]
[394381346,1763512321980,832.4157894,0.0001491,2]
[394381347,1763512326876,256.06,0.0001598,3]
[394381349,1763512338034,768.23,0.0001598,3]
[394381350,1763512441925,159.37719827,0.00015517,2]
[394381351,1763512444203,160.66789128,0.00015517,2]
[394381352,1763512562075,159.37719826,0.00015513,2]
[394381353,1763512563663,160.66789128,0.00015513,2]
[394381354,1763512583556,163.0,0.000328,120]
[394381355,1763512588763,163.0,0.000328,120]
[394381356,1763512649293,163.0,0.000328,120]
[394381357,1763512683193,160.66789128,0.00015513,2]
[394381358,1763512684020,290.34,0.00014535,2]
[394381359,1763512801961,10000.01,0.00014983,2]
[394381360,1763512801984,10000.01,0.00014983,2]
[394381361,1763512802007,4784.9094246,0.00014983,2]
[394381362,1763512803174,160.66789128,0.00015513,2]
[394381363,1763512811586,512.45,0.00015863,3]
[394381364,1763512822291,512.45,0.00015863,3]
[394381365,1763512833206,579.51,0.00015863,3]
[394381366,1763512840453,151.0,0.00015882,7]
[394381367,1763512843993,289.76,0.00015863,3]
[394381368,1763512854955,869.28,0.00015863,3]
[394381369,1763512865461,3149.55,0.00015863,3]
[394381370,1763512876478,2291.52,0.00015863,3]
[394381371,1763512887277,1145.76,0.00015863,3]
[394381372,1763512898234,572.88,0.00015863,3]
[394381373,1763512909074,286.44,0.00015863,3]
[394381374,1763512919704,859.34,0.00015863,3]
[394381375,1763512923135,160.66789128,0.00015516,2]
[394381376,1763512989357,151.0,0.00014879,7]
[394381377,1763512993609,2251.29259707,0.00015698,2]
[394381380,1763513007889,351.89001879,0.00015616,2]
[394381381,1763513017575,245.4836015,0.0001598,3]
[394381382,1763513020133,980.95247158,0.0001598,3]
[394381383,1763513023226,309.47127773,0.0001598,3]
[394381384,1763513025967,1236.64722581,0.0001598,3]
[394381385,1763513031862,409.32852201,0.00015907,4]
[394381386,1763513043157,160.66789128,0.00015516,2]
[394381387,1763513097740,-230.68552784,0.00015783,2]
[394381388,1763513097893,927.91226046,0.00015777,2]
[394381389,1763513106354,327.52846333,0.00015616,2]
[394381390,1763513112838,-800.0,0.000158,2]
[394381391,1763513114947,813.27059274,0.0001598,3]
[394381392,1763513115094,2566.4861045,0.00015683,2]
[394381393,1763513118037,3249.8292886,0.0001598,3]
[394381394,1763513123117,544.16280426,0.00015931,4]
[394381395,1763513128037,174.20119406,0.00015393,2]
[394381396,1763513128226,-229.10171687,0.00015814,2]
[394381397,1763513143616,-696.80477625,0.00015818,2]
[394381398,1763513159101,-1200.0,0.00015856,2]
[394381399,1763513159129,-300.0,0.00015856,2]
[394381400,1763513159158,-300.0,0.00015856,2]
[394381401,1763513162508,300.0,0.00015856,2]
[394381402,1763513222458,300.0,0.00015856,2]
[394381403,1763513256124,800.0,0.00015828,2]
[394381404,1763513256269,800.0,0.00015763,2]
[394381405,1763513256293,800.0,0.00015799,2]
[394381406,1763513256565,800.0,0.00015787,2]
[394381407,1763513256708,800.0,0.00015831,2]
[394381408,1763513267421,1200.0,0.00015856,2]
[394381409,1763513282229,300.0,0.00015856,2]
[394381410,1763513282744,300.01,0.0001486,2]
[394381411,1763513282769,699.99,0.0001486,2]
[394381412,1763513287100,580.239165,0.00030137,120]
[394381413,1763513297128,1685.18944146,0.000161,3]
[394381414,1763513311165,2319.5282914,0.00015616,2]
[394381415,1763513319479,1052.64092926,0.000161,3]
[394381416,1763513328179,566.71993916,0.00015747,2]
[394381417,1763513342217,1238.15136859,0.000161,3]
[394381418,1763513342815,300.0,0.00015856,2]
[394381419,1763513344737,9700.01,0.00015757,2]
[394381420,1763513344760,10000.01,0.00015757,2]
[394381421,1763513344783,10000.01,0.00015757,2]
[394381422,1763513348228,-739.48452048,0.00015757,2]
[394381423,1763513350297,-164.52089245,0.00015757,2]
[394381424,1763513353012,-351.01278784,0.00015757,2]
[394381425,1763513356706,-5063.60798138,0.00015757,2]
[394381426,1763513356794,-10000.01,0.00015757,2]
[394381427,1763513360229,-300.0,0.00015599,2]
[394381428,1763513362519,-247.09279327,0.00015599,2]
[394381429,1763513365819,1686.19847476,0.00015589,2]
[394381430,1763513366242,-641.27235726,0.00015599,2]
[394381431,1763513369049,-307.09728476,0.00015599,2]
[394381432,1763513371320,-479.54642108,0.00015599,2]
[394381433,1763513373894,-181.88495492,0.00015599,2]
[394381434,1763513375504,-171.83081564,0.00015599,2]
[394381435,1763513378785,-531.26706152,0.00015599,2]
[394381436,1763513382642,-392.70515437,0.00015599,2]
[394381437,1763513384251,-345.2844067,0.00015599,2]
[394381438,1763513386527,-320.45531104,0.00015599,2]
[394381439,1763513391222,-211.8912201,0.00015599,2]
[394381440,1763513392843,-387.51183085,0.00015599,2]
[394381441,1763513395067,-516.48784597,0.00015599,2]
[394381442,1763513399117,-780.36190651,0.00015599,2]
[394381443,1763513401484,-243.54353299,0.00015599,2]
[394381444,1763513403756,-250.12318378,0.00015598,2]
[394381445,1763513406642,244.0,0.00030681,120]
[394381446,1763513407394,-263.27327639,0.00015598,2]
[394381447,1763513410003,-265.76602723,0.00015598,2]
[394381448,1763513412059,-257.1029938,0.00015598,2]
[394381449,1763513415067,-163.7345188,0.00015598,2]
[394381450,1763513415090,-78.14851822,0.00015598,2]
[394381451,1763513416815,-221.85148178,0.00015598,2]
[394381452,1763513416843,-231.24014149,0.00015599,2]
[394381453,1763513418286,-160.43527447,0.00015599,2]
[394381454,1763513420326,-296.82089871,0.00015599,2]
[394381455,1763513424587,-300.0,0.00015599,2]
[394381456,1763513426980,-329.73489519,0.00015599,2]
[394381457,1763513430932,-170.26510481,0.00015599,2]
[394381478,1763513432413,-2288.031666,0.00015599,2]
[394381479,1763513432500,-514.03865856,0.00015599,2]
[394381480,1763513435173,-216.96010571,0.00015599,2]
[394381501,1763513438376,-1888.3931287,0.00015599,2]
[394381508,1763513438430,-543.96083211,0.00015599,2]
[394381510,1763513438441,-2095.20380549,0.00015599,2]
[394381516,1763513438485,-4906.68259178,0.00015599,2]
[394381518,1763513438495,-500.0,0.00015756,2]
[394381520,1763513438505,-385.11616529,0.00015756,2]
[394381522,1763513438513,-500.0,0.00015756,2]
[394381524,1763513438523,-500.0,0.00015756,2]
[394381526,1763513438532,-500.0,0.00015756,2]
[394381528,1763513438541,-500.0,0.00015756,2]
[394381530,1763513438550,-500.0,0.00015756,2]
[394381532,1763513438560,-566.18303662,0.00015756,2]
[394381534,1763513438569,-500.0,0.00015756,2]
[394381536,1763513438578,-500.0,0.00015756,2]
[394381538,1763513438588,-500.0,0.00015756,2]
[394381540,1763513438597,-500.0,0.00015756,2]
[394381542,1763513438606,-500.0,0.00015756,2]
[394381544,1763513438615,-500.0,0.00015756,2]
[394381546,1763513438625,-153.41886883,0.00015756,2]
[394381548,1763513438635,-500.0,0.00015756,2]
[394381550,1763513438644,-500.0,0.00015756,2]
[394381552,1763513438654,-500.0,0.00015756,2]
[394381554,1763513438664,-500.0,0.00015756,2]
[394381556,1763513438674,-500.0,0.00015756,2]
[394381558,1763513438683,-500.0,0.00015756,2]
[394381560,1763513438693,-500.0,0.00015756,2]
[394381562,1763513438701,-500.0,0.00015756,2]
[394381564,1763513438710,-500.0,0.00015756,2]
[394381566,1763513438719,-500.0,0.00015756,2]
[394381568,1763513438728,-500.0,0.00015756,2]
[394381570,1763513438737,-500.0,0.00015756,2]
[394381572,1763513438747,-500.0,0.00015756,2]
[394381574,1763513438756,-500.0,0.00015756,2]
[394381576,1763513438765,-500.0,0.00015756,2]
[394381578,1763513438775,-495.51484661,0.00015756,2]
[394381579,1763513438784,-500.0,0.00015756,2]
[394381581,1763513438793,-500.0,0.00015756,2]
[394381583,1763513438803,-500.0,0.00015756,2]
[394381585,1763513438812,-500.0,0.00015756,2]
[394381587,1763513438821,-500.0,0.00015756,2]
[394381589,1763513438830,-500.0,0.00015756,2]
[394381591,1763513438844,-500.0,0.00015756,2]
[394381593,1763513438853,-500.0,0.00015756,2]
[394381595,1763513438862,-500.0,0.00015756,2]
[394381597,1763513438873,-500.0,0.00015756,2]
[394381599,1763513438884,-500.0,0.00015756,2]
[394381601,1763513438893,-500.0,0.00015756,2]
[394381603,1763513438903,-500.0,0.00015756,2]
[394381605,1763513438914,-500.0,0.00015756,2]
[394381607,1763513438924,-500.0,0.00015756,2]
[394381609,1763513438934,-843981.33381785,0.00015757,2]
[394381612,1763513438946,-500.0,0.00015773,2]
[394381614,1763513438955,-500.0,0.00015773,2]
[394381616,1763513438965,-500.0,0.00015773,2]
[394381618,1763513438974,-500.0,0.00015773,2]
[394381620,1763513438984,-500.0,0.00015773,2]
[394381622,1763513438994,-500.0,0.00015773,2]
[394381624,1763513439003,-598.33896273,0.00015773,2]
[394381626,1763513439012,-500.0,0.00015773,2]
[394381628,1763513439022,-534.12852606,0.00015773,2]
[394381630,1763513439031,-1165.62679427,0.00015777,2]
[394381632,1763513439040,-9458.82688308,0.00015857,2]
[394381831,1763513440896,-3e-08,0.00015857,2]
[394382339,1763513452732,5000.0,0.00015589,2]
[394382340,1763513452857,-14616.36139509,0.00015857,2]
[394382341,1763513467621,-1734.51893859,0.00015616,2]
[394382342,1763513467764,5000.0,0.00015589,2]
[394382343,1763513470587,1530.97212282,0.00015616,2]
[394382344,1763513470611,1552.61710134,0.00015616,2]
[394382345,1763513472988,-22900.53656003,0.00039709,30]
[394382346,1763513473015,-100000.0,0.00039709,30]
[394382347,1763513473042,-69186.0,0.00039709,30]
[394382348,1763513473069,-6220.0595822,0.00039709,35]
[394382349,1763513473095,-122135.39858644,0.00039709,30]
[394382350,1763513475467,2482.05,0.00015849,3]
[394382351,1763513475496,5000.0,0.00015736,2]
[394382352,1763513483496,2777.17839026,0.00015736,2]
[394382353,1763513486196,1241.02,0.00015849,3]
[394382354,1763513486354,197.894982,0.00015068,2]
[394382355,1763513489902,181.40710856,0.00014857,2]
[394382356,1763513497197,620.51,0.00015849,3]
[394382357,1763513499509,-854.8180224,0.00014709,2]
[394382358,1763513504188,-229.46608671,0.00014562,2]
[394382359,1763513506483,-16.85308272,0.00014562,2]
[394382360,1763513506505,-283.14691728,0.00014709,2]
[394382361,1763513509566,-194.47980349,0.00014709,2]
[394382362,1763513512829,-304.81889097,0.00014709,2]
[394382363,1763513515104,-310.41833647,0.00014709,2]
[394382364,1763513517261,-248.27374537,0.00014709,2]
[394382365,1763513518737,-368.04522985,0.00014709,2]
[394382366,1763513518886,463.47,0.00015747,3]
[394382367,1763513520232,-152.45002919,0.00014709,2]
[394382368,1763513522603,-200.2,0.00014709,2]
[394382369,1763513525255,-213.59475807,0.00014709,2]
[394382370,1763513526741,-903.17910129,0.00014709,2]
[394382371,1763513529385,-154.84721429,0.00014709,2]
[394382372,1763513529584,231.73,0.00015747,3]
[394382373,1763513530952,-354.67857351,0.00014709,2]
[394382374,1763513534412,-172.12249522,0.00014709,2]
[394382375,1763513536680,-669.75774501,0.00014709,2]
[394382376,1763513539934,-189.0370999,0.00014709,2]
[394382377,1763513540315,695.22,0.00015747,3]
[394382378,1763513541956,-450.0,0.00014709,2]
[394382379,1763513544409,-550.545713,0.00014709,2]
[394382380,1763513547314,-160.51832996,0.00014709,2]
[394382381,1763513549483,-423.15883253,0.00014709,2]
[394382382,1763513551954,-381.9042425,0.00014709,2]
[394382383,1763513553487,-214.01584474,0.00014709,2]
[394382384,1763513555275,-241.33147702,0.00014709,2]
[394382385,1763513558116,-368.09,0.00014709,2]
[394382386,1763513561405,-184.04,0.00014709,2]
[394382387,1763513565059,-552.15,0.00014709,2]
[394382388,1763513567930,-736.17,0.00014709,2]
[394382389,1763513569515,-164.20759794,0.00014709,2]
[394382390,1763513569536,-3.85620848,0.00014856,2]
[394382391,1763513571406,184.04,0.00015747,3]
[394382392,1763513572973,-194.28136467,0.00014856,2]
[394382393,1763513576060,-101.86242685,0.00014856,2]
[394382394,1763513576081,-323.48909178,0.00014856,2]
[394382395,1763513578361,-352.42508406,0.00014856,2]
[394382396,1763513582595,214.72,0.00015747,3]
[394382397,1763513583078,-216.22520794,0.00014856,2]
[394382398,1763513584539,-307.86061622,0.00014856,2]
[394382399,1763513584560,-300.0,0.00014856,2]
[394382400,1763513584584,-529.58145291,0.00014857,2]
[394382401,1763513586712,-200.00057398,0.00014857,2]
[394382402,1763513590664,-1048.25041885,0.00014857,2]
[394382403,1763513592247,-447.15275416,0.00014857,2]
[394382404,1763513593551,178.93,0.00015747,3]
[394382405,1763513594784,-490.88684348,0.00014857,2]
[394382406,1763513597838,-246.42635548,0.00014857,2]
[394382407,1763513600436,1092.167933,0.00014549,2]
[394382408,1763513600717,-215.04014986,0.00014857,2]
[394382409,1763513601156,4906.68259178,0.00014847,2]
[394382410,1763513602908,-442.42225168,0.00014857,2]
[394382411,1763513604276,536.82,0.00015747,3]
[394382412,1763513606529,-255.82118197,0.00014856,2]
[394382413,1763513608917,4001.15947522,0.00014847,2]
[394382414,1763513608939,752.52135535,0.00014847,2]
[394382415,1763513609074,-205.2243995,0.00014856,2]
[394382416,1763513612776,-38.95441853,0.00014856,2]
[394382417,1763513612799,-180.95835434,0.00014856,2]
[394382418,1763513614365,-319.04164566,0.00014856,2]
[394382419,1763513614390,-11.82949555,0.00014856,2]
[394382420,1763513616757,-163.89783906,0.00014856,2]
[394382421,1763513619329,-397.11252533,0.00014856,2]
[394382422,1763513621962,-90.38024129,0.00014856,2]
[394382423,1763513621989,-320.78659633,0.00014856,2]
[394382424,1763513624580,818.2610017,0.00014847,2]
[394382425,1763513624773,-342.4335049,0.00014856,2]
[394382426,1763513624796,-25.14507007,0.00014856,2]
[394382427,1763513626703,-300.0,0.00014856,2]
[394382428,1763513633057,667.57857497,0.00014847,2]
[394382429,1763513641685,972.17720201,0.00014847,2]
[394382430,1763513651125,1356.34698172,0.00014755,2]
[394382431,1763513719039,1155.720695,0.00013699,2]
[394382433,1763513783157,-557.86206395,0.00014856,2]
[394382434,1763513785329,-384.04335551,0.00014856,2]
[394382435,1763513797471,551.11425526,0.00014153,7]
[394382436,1763513798266,150.0,0.00013879,7]
[394382437,1763513889740,-1200.0,0.00014855,2]
[394382438,1763513889767,-300.0,0.00014855,2]
[394382439,1763513912888,939.46637882,0.00014835,2]
[394382440,1763513915101,2113.79935235,0.00014835,2]
[394382441,1763513938880,16282.43482113,0.00039759,120]
[394382442,1763513942278,300.0,0.00014854,2]
[394382444,1763513982716,-385.11616529,0.00014855,2]
[394382445,1763513982747,-500.0,0.00014855,2]
[394382446,1763513982777,-500.0,0.00014855,2]
[394382447,1763513982808,-500.0,0.00014855,2]
[394382448,1763513982839,-500.0,0.00014855,2]
[394382449,1763513982870,-500.0,0.00014855,2]
[394382450,1763513982902,-500.0,0.00014855,2]
[394382451,1763513982933,-500.0,0.00014855,2]
[394382452,1763513982962,-500.0,0.00014855,2]
[394382453,1763513982992,-500.0,0.00014855,2]
[394382454,1763513983191,-337.13207648,0.00014855,2]
[394382455,1763513983223,-500.0,0.00014855,2]
[394382456,1763513983257,-500.0,0.00014855,2]
[394382457,1763513983289,-500.0,0.00014855,2]
[394382458,1763513983319,-500.0,0.00014855,2]
[394382459,1763513983349,-500.0,0.00014855,2]
[394382460,1763513983381,-500.0,0.00014855,2]
[394382461,1763513983415,-500.0,0.00014855,2]
[394382462,1763513983446,-500.0,0.00014855,2]
[394382463,1763513983476,-440.15083856,0.00014855,2]
[394382464,1763513983731,-500.0,0.00014855,2]
[394382465,1763513983762,-500.0,0.00014855,2]
[394382466,1763513983795,-500.0,0.00014855,2]
[394382467,1763513983828,-500.0,0.00014855,2]
[394382468,1763513983857,-500.0,0.00014855,2]
[394382469,1763513983891,-500.0,0.00014855,2]
[394382470,1763513983924,-500.0,0.00014855,2]
[394382471,1763513983957,-500.0,0.00014855,2]
[394382472,1763513983988,-500.0,0.00014855,2]
[394382473,1763513984019,-500.0,0.00014855,2]
[394382474,1763513984069,-500.0,0.00014855,2]
[394382475,1763513984100,-500.0,0.00014855,2]
[394382476,1763513984136,-500.0,0.00014855,2]
[394382477,1763513984167,-500.0,0.00014855,2]
[394382478,1763513984199,-500.0,0.00014855,2]
[394382479,1763513984230,-500.0,0.00014855,2]
[394382480,1763513984261,-500.0,0.00014855,2]
[394382481,1763513984292,-500.0,0.00014855,2]
[394382482,1763513984324,-500.0,0.00014855,2]
[394382483,1763513984353,-500.0,0.00014855,2]
[394382484,1763513984440,-500.0,0.00014855,2]
[394382485,1763513984470,-500.0,0.00014855,2]
[394382486,1763513984500,-500.0,0.00014855,2]
[394382487,1763513984530,-500.0,0.00014855,2]
[394382488,1763513984560,-500.0,0.00014855,2]
[394382489,1763513984591,-500.0,0.00014855,2]
[394382490,1763513984620,-500.0,0.00014855,2]
[394382491,1763513984652,-500.0,0.00014855,2]
[394382492,1763513984682,-500.0,0.00014855,2]
[394382493,1763513984711,-500.0,0.00014855,2]
[394382494,1763513984853,-500.0,0.00014855,2]
[394382495,1763513984884,-500.0,0.00014855,2]
[394382496,1763513984916,-500.0,0.00014855,2]
[394382497,1763513984945,-500.0,0.00014855,2]
[394382498,1763513984975,-170.85694329,0.00014855,2]
[394382499,1763513985005,-500.0,0.00014855,2]
[394382500,1763513985035,-500.0,0.00014855,2]
[394382501,1763513985064,-500.0,0.00014855,2]
[394382502,1763513985094,-500.0,0.00014855,2]
[394382503,1763513985126,-500.0,0.00014855,2]
[394382504,1763513985156,-158.29611342,0.00014855,2]
[394382505,1763513987087,-341.70388658,0.00014855,2]
[394382506,1763513987122,-500.0,0.00014855,2]
[394382507,1763513987152,-500.0,0.00014855,2]
[394382508,1763513987184,-500.0,0.00014855,2]
[394382509,1763513987217,-500.0,0.00014855,2]
[394382510,1763513987248,-500.0,0.00014855,2]
[394382511,1763513987282,-500.0,0.00014855,2]
[394382512,1763513987328,-500.0,0.00014855,2]
[394382513,1763513987365,-500.0,0.00014855,2]
[394382514,1763513987395,-500.0,0.00014855,2]
[394382515,1763513987438,-561.68808112,0.00014855,2]
[394382516,1763513987468,-500.0,0.00014855,2]
[394382517,1763513987501,-1393.96502189,0.00014855,2]
[394382518,1763513987533,-1393.96502189,0.00014855,2]
[394382519,1763513987563,-476.4180066,0.00014855,2]
[394382520,1763513987608,-1393.96502189,0.00014855,2]
[394382521,1763513987641,-1393.96502189,0.00014855,2]
[394382522,1763513987674,-1393.96502189,0.00014855,2]
[394382523,1763513987705,-242.25484677,0.00014855,2]
[394382524,1763513987742,-1151.71017512,0.00014855,2]
[394382525,1763513987774,-1393.96502189,0.00014855,2]
[394382526,1763513987806,-1393.96502189,0.00014855,2]
[394382527,1763513987839,-726.76454031,0.00014855,2]
[394382528,1763513991670,-667.20048158,0.00014855,2]
[394382529,1763513991715,-1393.96502189,0.00014855,2]
[394382530,1763513991755,-1393.96502189,0.00014855,2]
[394382531,1763513991795,-1393.96502189,0.00014855,2]
[394382532,1763513991936,-1393.96502189,0.00014855,2]
[394382533,1763513991968,-1393.96502189,0.00014855,2]
[394382534,1763513991998,-1393.96502189,0.00014855,2]
[394382535,1763513992032,-242.25484677,0.00014855,2]
[394382536,1763513992104,-1151.71017512,0.00014855,2]
[394382537,1763513992141,-1393.96502189,0.00014855,2]
[394382538,1763513992172,-1393.96502189,0.00014855,2]
[394382539,1763513992204,-726.76454031,0.00014855,2]
[394382540,1763513992474,-667.20048158,0.00014855,2]
[394382541,1763513992506,-1393.96502189,0.00014855,2]
[394382542,1763513992536,-1393.96502189,0.00014855,2]
[394382543,1763513992566,-1393.96502189,0.00014855,2]
[394382544,1763513992626,-1393.96502189,0.00014855,2]
[394382545,1763513992659,-1393.96502189,0.00014855,2]
[394382546,1763513992699,-1393.96502189,0.00014855,2]
[394382547,1763513992735,-242.25484677,0.00014855,2]
[394382548,1763513993995,433.83,0.00015747,3]
[394382549,1763514001452,-3698.5113449,0.00014707,2]
[394382550,1763514004669,650.74,0.00015747,3]
[394382551,1763514004858,2602.9873102,0.00014845,2]
[394382552,1763514004888,895.51208461,0.00014845,2]
[394382553,1763514015372,325.37,0.00015747,3]
[394382554,1763514026117,162.69,0.00015747,3]
[394382555,1763514026792,-333.3795908,0.00014705,2]
[394382556,1763514028468,2221.17331851,0.00014695,2]
[394382557,1763514031259,-249.28047151,0.00014705,2]
[394382558,1763514033648,-192.09411889,0.00014705,2]
[394382559,1763514037157,488.09,0.00015747,3]
[394382560,1763514078892,2349.69,0.00015747,3]
[394382561,1763514079369,229.535691,0.00016064,3]
[394382562,1763514089898,1174.84,0.00015747,3]
[394382563,1763514100814,587.42,0.00015747,3]
[394382564,1763514111620,293.71,0.00015747,3]
[394382565,1763514122616,881.16,0.00015747,3]
[394382566,1763514228864,301.57332821,0.0001598,3]
[394382567,1763514248242,-165.42970766,0.00014261,2]
[394382568,1763514248266,-175.78239429,0.0001441,2]
[394382569,1763514275767,1054.892072,0.00039765,120]
[394382570,1763514276073,1054.892072,0.00039765,120]
[394382571,1763514276392,1054.892072,0.00039765,120]
[394382572,1763514276683,1054.892072,0.00039765,120]
[394382573,1763514277274,1054.892072,0.00039765,120]
[394382574,1763514277571,1054.892072,0.00039765,120]
[394382575,1763514277905,1054.892072,0.00039765,120]
[394382576,1763514278212,1054.892072,0.00039765,120]
[394382577,1763514278515,1054.892072,0.00039765,120]
[394382578,1763514278816,1054.892072,0.00039765,120]
[394382579,1763514279157,1054.892072,0.00039765,120]
[394382580,1763514279460,1054.892072,0.00039765,120]
[394382581,1763514279773,1054.892072,0.00039765,120]
[394382582,1763514280083,1054.892072,0.00039765,120]
[394382583,1763514280436,1054.892072,0.00039765,120]
[394382584,1763514280746,1054.892072,0.00039765,120]
[394382585,1763514281043,1054.892072,0.00039765,120]
[394382586,1763514281358,1054.892072,0.00039765,120]
[394382587,1763514281649,1054.892072,0.00039765,120]
[394382588,1763514281958,1054.892077,0.00039765,120]
[394382589,1763514293566,151.0,0.00039765,120]
[394382590,1763514293850,151.0,0.00039765,120]
[394382591,1763514294139,151.0,0.00039765,120]
[394382592,1763514294557,151.0,0.00039765,120]
[394382593,1763514294727,151.0,0.00039765,120]
[394382594,1763514295014,151.0,0.00039765,120]
[394382595,1763514295301,151.0,0.00039765,120]
[394382596,1763514295588,151.0,0.00039765,120]
[394382597,1763514296205,151.0,0.00039765,120]
[394382598,1763514296519,151.0,0.00039765,120]
[394382599,1763514296913,151.0,0.00039765,120]
[394382600,1763514297266,151.0,0.00039765,120]
[394382601,1763514297547,151.0,0.00039765,120]
[394382602,1763514297831,181.162951,0.00039765,120]
[394382603,1763514306851,151.0,0.00039765,120]
[394382604,1763514307092,151.0,0.00039765,120]
[394382605,1763514307407,151.0,0.00039765,120]
[394382606,1763514307719,151.0,0.00039765,120]
[394382607,1763514308007,151.0,0.00039765,120]
[394382608,1763514308330,151.0,0.00039765,120]
[394382609,1763514308610,166.372651,0.00039765,120]
[394382610,1763514309838,2152.744812,0.00039765,120]
[394382611,1763514310289,2152.744812,0.00039765,120]
[394382612,1763514310429,2152.744812,0.00039765,120]
[394382613,1763514310714,2152.744812,0.00039765,120]
[394382614,1763514311005,2152.744812,0.00039765,120]
[394382615,1763514311301,2152.744812,0.00039765,120]
[394382616,1763514311632,2152.744812,0.00039765,120]
[394382617,1763514311924,2152.744812,0.00039765,120]
[394382618,1763514312228,2152.744812,0.00039765,120]
[394382619,1763514312586,2152.744812,0.00039765,120]
[394382620,1763514312897,2152.744812,0.00039765,120]
[394382621,1763514313189,2152.744812,0.00039765,120]
[394382622,1763514313361,431.314242,0.00039765,120]
[394382623,1763514313484,2152.744812,0.00039765,120]
[394382624,1763514313659,431.314242,0.00039765,120]
[394382625,1763514313929,2152.744812,0.00039765,120]
[394382626,1763514313964,431.314242,0.00039765,120]
[394382627,1763514314230,431.314242,0.00039765,120]
[394382628,1763514314367,2152.744812,0.00039765,120]
[394382629,1763514314571,431.314242,0.00039765,120]
[394382630,1763514314674,2152.744812,0.00039765,120]
[394382631,1763514315055,431.314242,0.00039765,120]
[394382632,1763514315167,2152.744812,0.00039765,120]
[394382633,1763514315273,431.314242,0.00039765,120]
[394382634,1763514315304,2152.744812,0.00039765,120]
[394382635,1763514315599,431.314242,0.00039765,120]